[Event "DSAM Bad Wildungen 2024"]
[Site "Bad Wildungen"]
[Date "2024.08.01"]
[Round "2.24"]
[White "Roenker, Sebastian"]
[Black "Degenhardt, Andreas"]
[Result "1-0"]
[Annotator "NA RC"]
[ECO "D02"]
[WhiteElo "1851"]
[BlackElo "1832"]
[PlyCount "57"]
[EventDate "2024.07.31"]
[EventCountry "GER"]
[SourceTitle "playchess.com"]
[Source "ChessBase"]
[SourceQuality "1"]
[TimeControl "40/5400+30:900+30"]

1. d4 {[%emt 0:00:05]} d5 {[%emt 0:00:07]} 2. Bf4 {[%emt 0:00:06]} e6 {[%emt 0:00:19]} 3. Nf3 {[%emt 0:00:07]} Bd6 {[%emt 0:00:07]} 4. Ne5 {[%emt 0:03:30]} Nf6 {[%emt 0:00:33]} 5. e3 {[%emt 0:03:11]} c5 {[%emt 0:01:06]} 6. Bb5+ {[%emt 0:04:18]} Kf8 {[%emt 0:18:38]} 7. dxc5 {[%emt 0:26:21]} Qa5+ {[%emt 0:08:43]} 8. Nc3 {[%emt 0:00:13]} Bxc5 {[%emt 0:02:33]} 9. O-O {[%emt 0:09:13]} a6 {[%emt 0:11:41]} 10. Be2 {[%emt 0:08:35]} b5 {[%emt 0:14:12]} 11. a3 {[%emt 0:02:37]} Qb6 {[%emt 0:02:05]} 12. b4 {[%emt 0:01:36]} Be7 {[%emt 0:01:01]} 13. Bh5 {[%emt 0:05:32]} g6 {[%emt 0:04:50]} 14. Bf3 {[%emt 0:02:12]} Kg7 {[%emt 0:01:20]} 15. g4 {[%emt 0:02:18]} Bb7 {[%emt 0:04:06]} 16. Ne2 {[%emt 0:02:53]} Ne4 {[%emt 0:03:26]} 17. Bxe4 {[%emt 0:02:22]} dxe4 {[%emt 0:00:28]} 18. Nd7 {[%emt 0:02:10]} Nxd7 19. Qxd7 {[%emt 0:00:04]} Bf6 {[%emt 0:06:39]} 20. Bc7 {[%emt 0:10:38]} Qc6 21. Qxc6 {[%emt 0:01:31]} Bxc6 {[%emt 0:02:48]} 22. Nd4 {[%emt 0:01:11]} Bd5 {[%emt 0:01:58]} 23. Bb6 {[%emt 0:02:06]} h5 {[%emt 0:01:43]} 24. gxh5 {[%emt 0:03:12]} Rxh5 {[%emt 0:00:45]} 25. Bc7 {[%emt 0:00:26]} e5 {[%emt 0:03:17]} 26. Ne2 {[%emt 0:01:10]} Rc8 {[%emt 0:02:08]} 27. Rfd1 {[%emt 0:01:54]} Rg5+ {[%emt 0:04:47]} 28. Ng3 {[%emt 0:00:58]} Be6 {[%emt 0:01:59]} 29. Bd6 {[%emt 0:01:25]} 1-0

[Event "DSAM Bad Wildungen 2024"]
[Site "Bad Wildungen"]
[Date "2024.08.01"]
[Round "2.25"]
[White "Arp, Piotr Alexander"]
[Black "Best, Florian"]
[Result "0-1"]
[Annotator "NA RC"]
[ECO "D31"]
[WhiteElo "1863"]
[BlackElo "1836"]
[PlyCount "41"]
[EventDate "2024.07.31"]
[EventCountry "GER"]
[SourceTitle "playchess.com"]
[Source "ChessBase"]
[SourceQuality "1"]
[TimeControl "40/5400+30:900+30"]

1. d4 {[%emt 0:00:02]} d5 {[%emt 0:00:08]} 2. c4 {[%emt 0:00:04]} e6 {[%emt 0:00:06]} 3. Nc3 {[%emt 0:00:04]} c6 {[%emt 0:00:11]} 4. e4 {[%emt 0:00:13]} Nf6 {[%emt 0:00:37]} 5. e5 {[%emt 0:03:06]} Nfd7 {[%emt 0:00:07]} 6. Bd3 {[%emt 0:02:51]} dxc4 {[%emt 0:01:59]} 7. Bxc4 {[%emt 0:00:09]} Nb6 {[%emt 0:01:19]} 8. Bb3 {[%emt 0:00:59]} Nd5 {[%emt 0:01:41]} 9. Nf3 {[%emt 0:06:08]} Bb4 {[%emt 0:01:31]} 10. Bd2 {[%emt 0:00:37]} Bxc3 {[%emt 0:03:18]} 11. bxc3 {[%emt 0:04:45]} Nd7 {[%emt 0:01:25]} 12. Ng5 {[%emt 0:02:02]} O-O {[%emt 0:02:15]} 13. Qh5 {[%emt 0:07:03]} h6 {[%emt 0:00:13]} 14. Bc2 {[%emt 0:02:44]} Nxc3 {[%emt 0:01:09]} 15. Nf3 {[%emt 0:14:05]} Nd5 {[%emt 0:01:49]} 16. Bxh6 {[%emt 0:03:40]} gxh6 {[%emt 0:04:17]} 17. Qxh6 {[%emt 0:02:12]} f5 {[%emt 0:00:05]} 18. Qxe6+ {[%emt 0:01:00]} Rf7 {[%emt 0:00:25]} 19. Qg6+ {[%emt 0:03:17]} Rg7 {[%emt 0:00:14]} 20. Qxf5 {[%emt 0:01:37]} Nxe5 {[%emt 0:00:32]} 21. Qe4 {[%emt 0:04:22]} 0-1

[Event "DSAM Bad Wildungen 2024"]
[Site "Bad Wildungen"]
[Date "2024.08.01"]
[Round "2.26"]
[White "Brixius, Dirk"]
[Black "Niemann, Silvio"]
[Result "1-0"]
[Annotator "RC"]
[ECO "E32"]
[WhiteElo "1809"]
[BlackElo "1904"]
[PlyCount "79"]
[EventDate "2024.07.31"]
[EventCountry "GER"]
[SourceTitle "playchess.com"]
[Source "ChessBase"]
[SourceQuality "1"]
[TimeControl "40/5400+30:900+30"]

1. c4 {[%emt 0:00:02]} Nf6 {[%emt 0:00:08]} 2. d4 {[%emt 0:00:18]} e6 {[%emt 0:00:04]} 3. Nc3 {[%emt 0:01:07]} Bb4 {[%emt 0:01:53]} 4. Qc2 {[%emt 0:01:49]} b6 {[%emt 0:00:22]} 5. Nf3 {[%emt 0:05:12]} Bb7 {[%emt 0:00:57]} 6. e3 {[%emt 0:03:01]} Ne4 {[%emt 0:00:35]} 7. Be2 {[%emt 0:02:30]} Bxc3+ 8. bxc3 {[%emt 0:00:11]} O-O {[%emt 0:04:18]} 9. O-O {[%emt 0:01:30]} f5 {[%emt 0:00:06]} 10. a4 {[%emt 0:02:43]} d6 {[%emt 0:00:33]} 11. Nd2 {[%emt 0:06:31]} Qg5 {[%emt 0:02:53]} 12. f4 {[%emt 0:02:31]} Qg6 {[%emt 0:01:15]} 13. Bf3 {[%emt 0:05:18]} Nd7 {[%emt 0:04:21]} 14. Bb2 {[%emt 0:02:36]} Ndf6 {[%emt 0:03:16]} 15. a5 {[%emt 0:08:47]} Ng4 {[%emt 0:04:00]} 16. Rfe1 {[%emt 0:01:41]} Rab8 {[%emt 0:09:18]} 17. axb6 {[%emt 0:08:44]} axb6 {[%emt 0:00:12]} 18. Ra7 {[%emt 0:05:08]} Ngf6 {[%emt 0:03:03]} 19. Nf1 {[%emt 0:02:56]} c5 {[%emt 0:04:05]} 20. Qe2 {[%emt 0:04:20]} h5 {[%emt 0:09:32]} 21. Ba1 {[%emt 0:04:31]} h4 {[%emt 0:01:37]} 22. Rb1 {[%emt 0:00:46]} Ba8 {[%emt 0:04:44]} 23. Rb3 {[%emt 0:03:12]} e5 {[%emt 0:11:27]} 24. Re7 {[%emt 0:03:46]} exf4 {[%emt 0:05:04]} 25. exf4 {[%emt 0:02:53]} d5 {[%emt 0:03:53]} 26. Ra3 {[%emt 0:01:51]} dxc4 27. Qxc4+ {[%emt 0:02:47]} Bd5 {[%emt 0:03:24]} 28. Qe2 {[%emt 0:00:31]} cxd4 29. cxd4 {[%emt 0:00:53]} b5 {[%emt 0:01:40]} 30. Raa7 {[%emt 0:01:14]} Rf7 {[%emt 0:01:35]} 31. Ne3 {[%emt 0:01:31]} Rxe7 32. Rxe7 {[%emt 0:00:03]} Rc8 {[%emt 0:04:32]} 33. Bb2 {[%emt 0:01:43]} h3 {[%emt 0:02:38]} 34. Re5 {[%emt 0:03:03]} Bc4 {[%emt 0:02:22]} 35. Qe1 {[%emt 0:01:10]} hxg2 {[%emt 0:00:36]} 36. Nxf5 {[%emt 0:00:48]} Kf7 {[%emt 0:06:54]} 37. Bxe4 {[%emt 0:01:41]} Nxe4 38. Qxe4 {[%emt 0:00:03]} Qg4 {[%emt 0:02:02]} 39. Nd6+ {[%emt 0:01:05]} Kf8 {[%emt 0:00:13]} 40. Qf5+ 1-0

[Event "DSAM Bad Wildungen 2024"]
[Site "Bad Wildungen"]
[Date "2024.08.01"]
[Round "2.27"]
[White "Will, Jonas"]
[Black "Marzik, Arne"]
[Result "1-0"]
[Annotator "NA RC"]
[ECO "C02"]
[WhiteElo "1868"]
[BlackElo "1792"]
[PlyCount "37"]
[EventDate "2024.07.31"]
[EventCountry "GER"]
[SourceTitle "playchess.com"]
[Source "ChessBase"]
[SourceQuality "1"]
[TimeControl "40/5400+30:900+30"]

1. e4 {[%emt 0:00:04]} e6 {[%emt 0:00:07]} 2. d4 {[%emt 0:00:05]} d5 {[%emt 0:00:05]} 3. e5 {[%emt 0:00:04]} c5 {[%emt 0:00:08]} 4. c3 {[%emt 0:00:04]} Nc6 {[%emt 0:00:13]} 5. Nf3 {[%emt 0:00:05]} Qb6 {[%emt 0:00:05]} 6. Bd3 {[%emt 0:00:13]} cxd4 {[%emt 0:00:18]} 7. O-O {[%emt 0:01:59]} Bd7 {[%emt 0:00:33]} 8. Qe2 {[%emt 0:00:41]} a6 {[%emt 0:05:26]} 9. Nbd2 {[%emt 0:03:31]} dxc3 10. bxc3 {[%emt 0:00:02]} Nge7 {[%emt 0:08:26]} 11. Nb3 {[%emt 0:02:45]} Ng6 {[%emt 0:03:08]} 12. Re1 {[%emt 0:02:07]} Be7 {[%emt 0:01:06]} 13. Rb1 {[%emt 0:01:48]} O-O {[%emt 0:05:29]} 14. h4 {[%emt 0:01:04]} Nxh4 {[%emt 0:21:49]} 15. Nxh4 Bxh4 {[%emt 0:00:16]} 16. Bxh7+ Kxh7 {[%emt 0:00:43]} 17. Qh5+ {[%emt 0:04:02]} Kg8 {[%emt 0:00:42]} 18. Qxh4 {[%emt 0:00:04]} Qd8 {[%emt 0:13:40]} 19. Bg5 {[%emt 0:01:07]} 1-0

[Event "DSAM Bad Wildungen 2024"]
[Site "Bad Wildungen"]
[Date "2024.08.01"]
[Round "2.28"]
[White "Fink, Wolfgang"]
[Black "Valean, David-Andrei"]
[Result "1/2-1/2"]
[Annotator "NA RC"]
[ECO "D00"]
[WhiteElo "1846"]
[BlackElo "1762"]
[PlyCount "148"]
[EventDate "2024.07.31"]
[EventCountry "GER"]
[SourceTitle "playchess.com"]
[Source "ChessBase"]
[SourceQuality "1"]
[TimeControl "40/5400+30:900+30"]

1. f4 {[%emt 0:00:04]} d5 {[%emt 0:00:08]} 2. Nf3 {[%emt 0:00:02]} Nf6 {[%emt 0:00:14]} 3. e3 {[%emt 0:00:19]} Bf5 {[%emt 0:00:23]} 4. d4 {[%emt 0:00:22]} e6 {[%emt 0:00:17]} 5. Bd3 Bxd3 {[%emt 0:03:01]} 6. Qxd3 {[%emt 0:00:20] D00: 1 d4 d5: Unusual lines.} Nbd7 {[%emt 0:00:23]} 7. c4 {[%emt 0:00:45]} dxc4 {[%emt 0:08:38]} 8. Qxc4 {[%emt 0:00:19]} c5 {[%emt 0:00:28]} 9. O-O {[%emt 0:01:17]} Be7 {[%emt 0:01:44]} 10. Nc3 {[%emt 0:02:43]} O-O {[%emt 0:02:38]} 11. Bd2 {[%emt 0:06:50]} Rc8 {[%emt 0:07:02]} 12. Qe2 {[%emt 0:07:28]} cxd4 {[%emt 0:04:49]} 13. Nxd4 {[%emt 0:00:09]} Nc5 {[%emt 0:01:41]} 14. Rad1 {[%emt 0:01:13]} Qb6 {[%emt 0:01:49]} 15. Bc1 {[%emt 0:02:19]} Nce4 {[%emt 0:08:16]} 16. Nxe4 Nxe4 {[%emt 0:00:57]} 17. Qd3 {[%emt 0:12:06]} Nc5 {[%emt 0:09:13]} 18. Qb5 Qxb5 {[%emt 0:08:48]} 19. Nxb5 {[%emt 0:09:25]} a6 {[%emt 0:00:43]} 20. Nd4 {[%emt 0:06:37]} Rfd8 {[%emt 0:01:50]} 21. Kf2 {[%emt 0:04:57]} Bf6 {[%emt 0:01:55]} 22. Kf3 {[%emt 0:03:04]} Rd7 {[%emt 0:15:52]} 23. b4 {[%emt 0:05:37]} Na4 {[%emt 0:04:42]} 24. Nb3 {[%emt 0:00:57]} Rdd8 {[%emt 0:06:48]} 25. Rxd8+ {[%emt 0:08:28]} Rxd8 {[%emt 0:00:28]} 26. e4 {[%emt 0:00:15]} Bc3 {[%emt 0:00:34]} 27. a3 {[%emt 0:01:19]} Bxb4 {[%emt 0:01:21]} 28. axb4 {[%emt 0:02:49]} Rd3+ {[%emt 0:00:12]} 29. Be3 {[%emt 0:00:25]} Rxb3 {[%emt 0:00:08]} 30. Rd1 {[%emt 0:00:54]} Kf8 {[%emt 0:03:32]} 31. Rd7 {[%emt 0:06:25]} Rxb4 {[%emt 0:01:12]} 32. Ba7 {[%emt 0:01:43]} Rb3+ {[%emt 0:02:42]} 33. Kf2 {[%emt 0:02:28]} b6 {[%emt 0:03:44]} 34. Bb8 {[%emt 0:00:18]} Ke8 {[%emt 0:00:29]} 35. Ra7 {[%emt 0:00:18]} Nc5 {[%emt 0:00:29]} 36. e5 {[%emt 0:00:32]} a5 {[%emt 0:00:41]} 37. Ke2 {[%emt 0:00:38]} Ne4 {[%emt 0:00:30]} 38. g4 {[%emt 0:02:11]} a4 {[%emt 0:00:19]} 39. f5 {[%emt 0:01:30]} exf5 40. gxf5 {[%emt 0:00:18]} a3 {[%emt 0:01:14]} 41. e6 {[%emt 0:15:30]} fxe6 42. fxe6 {[%emt 0:00:00]} Nc3+ {[%emt 0:15:57]} 43. Kd2 {[%emt 0:00:00]} a2 {[%emt 0:00:35]} 44. Be5 {[%emt 0:00:00]} Ne4+ {[%emt 0:00:30]} 45. Kc2 {[%emt 0:00:00]} Rb5 {[%emt 0:00:32]} 46. Bxg7 {[%emt 0:00:00]} Ra5 {[%emt 0:00:26]} 47. Rxa5 {[%emt 0:00:00]} bxa5 {[%emt 0:00:01]} 48. Kb2 {[%emt 0:00:09]} Ke7 {[%emt 0:00:47]} 49. Kxa2 {[%emt 0:00:16]} Kxe6 {[%emt 0:00:08]} 50. Kb3 {[%emt 0:00:38]} Nc5+ {[%emt 0:00:57]} 51. Kc4 {[%emt 0:00:30]} Nb7 {[%emt 0:00:16]} 52. Kb5 {[%emt 0:00:31]} Kf5 {[%emt 0:00:53]} 53. Bf8 {[%emt 0:00:57]} Kg4 {[%emt 0:00:31]} 54. Be7 {[%emt 0:00:48]} Kf5 {[%emt 0:00:31]} 55. Kc6 {[%emt 0:00:14]} Ke6 {[%emt 0:00:14]} 56. Ba3 {[%emt 0:01:08]} Nd8+ {[%emt 0:00:21]} 57. Kb6 {[%emt 0:00:42]} Nf7 {[%emt 0:00:15]} 58. Kxa5 {[%emt 0:00:25]} Ng5 {[%emt 0:00:26]} 59. Bc1 {[%emt 0:02:20]} Nf3 {[%emt 0:00:15]} 60. Bf4 {[%emt 0:00:59]} Kf5 {[%emt 0:00:10]} 61. Bc7 {[%emt 0:00:17]} Kg4 {[%emt 0:00:14]} 62. Kb5 {[%emt 0:00:24]} Kh3 {[%emt 0:00:35]} 63. Kc5 {[%emt 0:00:31]} Nxh2 {[%emt 0:00:47]} 64. Kd5 $11 {[%emt 0:00:08]} h5 {[%emt 0:00:48]} 65. Ke4 {[%emt 0:00:23]} Nf1 {[%emt 0:01:24]} 66. Kf3 {[%emt 0:00:50]} Nd2+ {[%emt 0:00:18]} 67. Kf4 {[%emt 0:00:33]} Nc4 {[%emt 0:00:37]} 68. Kf3 {[%emt 0:00:44]} Na3 {[%emt 0:00:27]} 69. Kf4 {[%emt 0:00:31]} Nb5 {[%emt 0:00:12]} 70. Be5 {[%emt 0:00:47]} Na7 {[%emt 0:00:36]} 71. Kf3 {[%emt 0:00:33]} Nc6 {[%emt 0:00:15]} 72. Bf6 {[%emt 0:00:27]} Nb4 {[%emt 0:00:29]} 73. Be7 {[%emt 0:01:02]} Nd5 {[%emt 0:00:53]} 74. Bd8 {[%emt 0:00:02]} Nc3 {[%emt 0:00:18]} 1/2-1/2

[Event "DSAM Bad Wildungen 2024"]
[Site "Bad Wildungen"]
[Date "2024.08.01"]
[Round "2.29"]
[White "Rogner, Fabio"]
[Black "Boldt, Timo"]
[Result "0-1"]
[Annotator "NA RC"]
[ECO "B27"]
[WhiteElo "1815"]
[BlackElo "1801"]
[PlyCount "63"]
[EventDate "2024.07.31"]
[EventCountry "GER"]
[SourceTitle "playchess.com"]
[Source "ChessBase"]
[SourceQuality "1"]
[TimeControl "40/5400+30:900+30"]

1. e4 {[%emt 0:00:06]} c5 {[%emt 0:00:10]} 2. Nf3 {[%emt 0:00:17]} g6 {[%emt 0:00:11]} 3. d4 {[%emt 0:01:34]} cxd4 4. Qxd4 {[%emt 0:00:16]} Nf6 {[%emt 0:01:34]} 5. Nc3 {[%emt 0:00:17]} Nc6 {[%emt 0:00:19]} 6. Qa4 {[%emt 0:00:44]} d6 {[%emt 0:10:20]} 7. e5 {[%emt 0:01:05]} dxe5 8. Nxe5 {[%emt 0:00:19]} Bd7 {[%emt 0:04:52]} 9. Nxd7 Qxd7 {[%emt 0:01:34]} 10. Be3 {[%emt 0:01:55]} Bg7 {[%emt 0:06:58]} 11. Rd1 {[%emt 0:01:01]} Qg4 {[%emt 0:02:13]} 12. Qb3 {[%emt 0:02:53]} Qb4 {[%emt 0:02:49]} 13. Qxb4 Nxb4 {[%emt 0:01:24]} 14. Bb5+ {[%emt 0:06:39]} Nc6 {[%emt 0:01:20]} 15. O-O {[%emt 0:01:12]} O-O {[%emt 0:01:34]} 16. Bc5 {[%emt 0:02:39]} Rfe8 {[%emt 0:01:18]} 17. Rfe1 {[%emt 0:06:42]} e6 {[%emt 0:00:37]} 18. h3 {[%emt 0:03:31]} a6 {[%emt 0:02:09]} 19. Bd3 {[%emt 0:03:40]} Nd7 {[%emt 0:15:29]} 20. Be3 {[%emt 0:02:57]} Nb4 {[%emt 0:09:26]} 21. Ne4 {[%emt 0:16:09]} Ne5 {[%emt 0:10:21]} 22. Bg5 {[%emt 0:06:46]} Nexd3 {[%emt 0:06:46]} 23. cxd3 {[%emt 0:00:48]} Rec8 {[%emt 0:01:37]} 24. Re2 {[%emt 0:11:28]} Nxa2 {[%emt 0:03:20]} 25. d4 {[%emt 0:09:12]} h6 {[%emt 0:03:24]} 26. Bd2 {[%emt 0:01:15]} Rc2 {[%emt 0:06:41]} 27. Kf1 {[%emt 0:13:47]} Rxb2 {[%emt 0:01:32]} 28. Be1 {[%emt 0:01:45]} Rxe2 29. Kxe2 {[%emt 0:00:04]} Rc8 {[%emt 0:02:49]} 30. Nc5 {[%emt 0:01:45]} Bxd4 {[%emt 0:01:30]} 31. Nxb7 {[%emt 0:00:10]} e5 {[%emt 0:01:16]} 32. f4 {[%emt 0:00:52]} 0-1

[Event "DSAM Bad Wildungen 2024"]
[Site "Bad Wildungen"]
[Date "2024.08.01"]
[Round "2.30"]
[White "Koehler, Wilhelm"]
[Black "Hoefle, Jan"]
[Result "1-0"]
[Annotator "NA COMBH RC"]
[ECO "B12"]
[WhiteElo "1829"]
[BlackElo "1765"]
[PlyCount "159"]
[EventDate "2024.07.31"]
[EventCountry "GER"]
[SourceTitle "playchess.com"]
[Source "ChessBase"]
[SourceQuality "1"]
[TimeControl "40/5400+30:900+30"]

1. e4 {[%emt 0:00:03]} c6 {[%emt 0:00:07]} 2. d4 {[%emt 0:00:07]} d5 {[%emt 0:00:07]} 3. e5 {[%emt 0:00:05]} Bf5 {[%emt 0:00:06]} 4. Nd2 {[%emt 0:00:12]} e6 {[%emt 0:00:48]} 5. Nb3 {[%emt 0:00:06]} Nd7 {[%emt 0:00:29]} 6. Nf3 {[%emt 0:00:06]} h6 {[%emt 0:00:50]} 7. Be2 {[%emt 0:00:10]} a6 {[%emt 0:01:39]} 8. O-O {[%emt 0:03:38]} c5 {[%emt 0:01:49]} 9. dxc5 {[%emt 0:02:42]} Nxc5 {[%emt 0:01:02]} 10. Nxc5 {[%emt 0:00:10]} Bxc5 {[%emt 0:00:10]} 11. c3 {[%emt 0:01:36]} Ne7 {[%emt 0:01:18]} 12. Nd4 {[%emt 0:00:30]} O-O {[%emt 0:06:53]} 13. Be3 {[%emt 0:02:15]} Rc8 {[%emt 0:06:10]} 14. g4 {[%emt 0:05:18]} Bxd4 {[%emt 0:09:48]} 15. cxd4 {[%emt 0:02:13]} Bh7 {[%emt 0:03:38]} 16. Bd3 {[%emt 0:04:45]} Bxd3 {[%emt 0:01:11]} 17. Qxd3 {[%emt 0:00:04]} Ng6 {[%emt 0:01:44]} 18. f4 {[%emt 0:02:11]} Qh4 {[%emt 0:08:01]} 19. Qe2 {[%emt 0:00:40]} f5 {[%emt 0:06:17]} 20. gxf5 {[%emt 0:08:34]} Rxf5 {[%emt 0:00:37]} 21. Qf2 {[%emt 0:00:56]} Qxf2+ {[%emt 0:07:09]} 22. Rxf2 {[%emt 0:00:15]} Rf7 {[%emt 0:00:26]} 23. Rc1 {[%emt 0:04:32]} Rxc1+ {[%emt 0:00:42]} 24. Bxc1 {[%emt 0:00:02]} Rc7 {[%emt 0:00:13]} 25. Bd2 {[%emt 0:00:54]} Ne7 {[%emt 0:00:42]} 26. Bc3 {[%emt 0:02:55]} Nf5 {[%emt 0:00:36]} 27. Rf3 {[%emt 0:01:31]} Rc4 {[%emt 0:02:33]} 28. Rd3 {[%emt 0:01:14]} b5 {[%emt 0:00:59]} 29. a3 {[%emt 0:01:40]} Kf7 {[%emt 0:02:15]} 30. Kf2 {[%emt 0:00:39]} h5 {[%emt 0:03:01]} 31. Ke2 {[%emt 0:03:55]} Rc8 {[%emt 0:02:47]} 32. Kd2 {[%emt 0:01:51]} Rg8 {[%emt 0:01:47]} 33. Kc2 {[%emt 0:06:16]} g5 {[%emt 0:01:31]} 34. fxg5 {[%emt 0:00:25]} Rxg5 {[%emt 0:00:17]} 35. Kb3 {[%emt 0:00:52]} Rg2 {[%emt 0:00:55]} 36. h3 {[%emt 0:00:58]} Re2 {[%emt 0:01:28]} 37. Kb4 {[%emt 0:01:39]} h4 {[%emt 0:04:08]} 38. Ka5 {[%emt 0:01:35]} Rg2 {[%emt 0:00:43]} 39. Kxa6 {[%emt 0:03:16]} Rg3 {[%emt 0:00:26]} 40. Rxg3 {[%emt 0:01:14]} hxg3 {[%emt 0:00:13]} 41. Be1 {[%emt 0:15:08]} Kg6 {[%emt 0:17:02]} 42. Bxg3 {[%emt 0:00:50]} Nxg3 {[%emt 0:00:18]} 43. Kxb5 {[%emt 0:00:05]} Ne2 {[%emt 0:00:30]} 44. Kc5 {[%emt 0:00:19]} Kf5 {[%emt 0:01:19]} 45. b4 {[%emt 0:03:44]} Ke4 {[%emt 0:01:03]} 46. b5 {[%emt 0:00:16]} Nxd4 {[%emt 0:00:30]} 47. b6 {[%emt 0:00:09]} Nb3+ {[%emt 0:01:26]} 48. Kb4 {[%emt 0:00:02]} Nd4 {[%emt 0:00:42]} 49. Kc5 {[%emt 0:00:24]} Nb3+ {[%emt 0:00:12]} 50. Kd6 {[%emt 0:01:50]} Na5 {[%emt 0:00:12]} 51. Kxe6 {[%emt 0:00:19]} d4 {[%emt 0:00:25]} 52. Kf6 {[%emt 0:00:17]} d3 {[%emt 0:00:27]} 53. e6 {[%emt 0:00:02]} Nc6 {[%emt 0:00:16]} 54. e7 {[%emt 0:00:46]} Nxe7 {[%emt 0:00:07]} 55. Kxe7 {[%emt 0:00:05]} d2 {[%emt 0:00:07]} 56. b7 {[%emt 0:00:02]} d1=Q {[%emt 0:00:52]} 57. b8=Q {[%emt 0:00:09]} Qh5 {[%emt 0:03:26]} 58. Qb4+ {[%emt 0:01:07]} Ke3 {[%emt 0:00:41]} 59. Qe1+ {[%emt 0:03:08]} Kd4 {[%emt 0:01:05]} 60. Qd2+ {[%emt 0:00:35]} Ke4 {[%emt 0:00:48]} 61. Qb4+ {[%emt 0:01:44]} Ke3 {[%emt 0:00:38]} 62. h4 {[%emt 0:02:21]} Qh7+ {[%emt 0:01:20]} 63. Kd6 {[%emt 0:00:20]} Qg6+ {[%emt 0:01:22]} 64. Kc5 {[%emt 0:00:23]} Qf5+ {[%emt 0:00:33]} 65. Kb6 {[%emt 0:00:13]} Qg6+ {[%emt 0:01:24]} 66. Ka5 {[%emt 0:00:10]} Qf7 {[%emt 0:00:56]} 67. a4 {[%emt 0:00:49]} Qa7+ {[%emt 0:00:43]} 68. Kb5 {[%emt 0:00:10]} Qd7+ {[%emt 0:00:20]} 69. Ka6 {[%emt 0:01:22]} Qc8+ {[%emt 0:01:07]} 70. Qb7 {[%emt 0:02:23]} Qc4+ {[%emt 0:00:31]} 71. Qb5 {[%emt 0:00:24]} Qxh4 {[%emt 0:00:29]} 72. a5 {[%emt 0:01:15]} Qg4 {[%emt 0:02:05]} 73. Ka7 {[%emt 0:00:25]} Qc8 {[%emt 0:00:43]} 74. Qb7 {[%emt 0:01:24]} Qe8 {[%emt 0:01:59]} 75. a6 {[%emt 0:00:22]} Kd3 {[%emt 0:00:13]} 76. Kb6 {[%emt 0:00:39]} Qd8+ {[%emt 0:01:33]} 77. Kb5 {[%emt 0:01:32]} Qe8+ {[%emt 0:00:43]} 78. Kb4 {[%emt 0:00:47]} Qf8+ {[%emt 0:00:44]} 79. Ka4 {[%emt 0:00:20]} Kc4 {[%emt 0:01:17] Check Result:#12} 80. Qb3+ {[%emt 0:01:10]} 1-0

[Event "DSAM Bad Wildungen 2024"]
[Site "Bad Wildungen"]
[Date "2024.08.01"]
[Round "2.31"]
[White "Lehmann, Michael"]
[Black "Dolidze, David"]
[Result "1/2-1/2"]
[Annotator "NA RC"]
[ECO "D94"]
[WhiteElo "1731"]
[BlackElo "1720"]
[PlyCount "119"]
[EventDate "2024.07.31"]
[EventCountry "GER"]
[SourceTitle "playchess.com"]
[Source "ChessBase"]
[SourceQuality "1"]
[TimeControl "40/5400+30:900+30"]

1. d4 {[%emt 0:00:02]} Nf6 {[%emt 0:00:29]} 2. c4 {[%emt 0:00:07]} g6 {[%emt 0:00:08]} 3. Nf3 {[%emt 0:00:14]} Bg7 {[%emt 0:00:08]} 4. Nc3 {[%emt 0:00:15]} O-O {[%emt 0:00:07]} 5. e3 {[%emt 0:00:07]} d5 {[%emt 0:00:29]} 6. Be2 {[%emt 0:00:14]} c5 {[%emt 0:00:27]} 7. O-O {[%emt 0:00:52]} cxd4 {[%emt 0:05:25]} 8. Nxd4 {[%emt 0:00:50]} a6 {[%emt 0:02:57]} 9. cxd5 {[%emt 0:03:49]} Nxd5 {[%emt 0:00:13]} 10. Nxd5 {[%emt 0:00:27]} Qxd5 {[%emt 0:00:07]} 11. Bf3 {[%emt 0:00:23]} Qd6 {[%emt 0:09:30]} 12. Rb1 {[%emt 0:14:13]} Rd8 {[%emt 0:02:04]} 13. Qb3 {[%emt 0:04:58]} Bxd4 {[%emt 0:03:26]} 14. exd4 {[%emt 0:00:19]} Nc6 {[%emt 0:00:43]} 15. Be3 {[%emt 0:06:25]} Rb8 {[%emt 0:04:49]} 16. Rbd1 {[%emt 0:02:48]} Nb4 {[%emt 0:11:58]} 17. a3 {[%emt 0:10:34]} Nd5 {[%emt 0:00:19]} 18. Bxd5 {[%emt 0:04:58]} Qxd5 {[%emt 0:00:06]} 19. Qxd5 {[%emt 0:00:34]} Rxd5 {[%emt 0:00:07]} 20. Rc1 {[%emt 0:02:19]} Rd7 {[%emt 0:07:21]} 21. Rc3 {[%emt 0:00:16]} b5 {[%emt 0:00:54]} 22. Rfc1 {[%emt 0:02:23]} Bb7 {[%emt 0:00:20]} 23. Rc7 {[%emt 0:01:29]} Rbd8 {[%emt 0:00:12]} 24. Rxd7 {[%emt 0:00:23]} Rxd7 {[%emt 0:00:10]} 25. f3 {[%emt 0:00:09]} f6 {[%emt 0:00:41]} 26. Kf2 {[%emt 0:01:00]} Kf7 {[%emt 0:02:20]} 27. Ke2 {[%emt 0:05:56]} Bd5 {[%emt 0:00:26]} 28. Rc5 {[%emt 0:07:55]} Bb3 {[%emt 0:04:05]} 29. Rc6 {[%emt 0:01:41]} a5 {[%emt 0:00:30]} 30. Kd3 {[%emt 0:09:29]} a4 {[%emt 0:01:52]} 31. Kc3 {[%emt 0:00:26]} Bc4 {[%emt 0:00:30]} 32. Kb4 {[%emt 0:01:03]} Bf1 {[%emt 0:02:37]} 33. g3 {[%emt 0:01:48]} Be2 {[%emt 0:00:08]} 34. f4 {[%emt 0:00:17]} h5 {[%emt 0:00:27]} 35. Kc5 {[%emt 0:00:28]} Bg4 {[%emt 0:01:07]} 36. Kxb5 {[%emt 0:02:29]} Rb7+ {[%emt 0:00:55]} 37. Rb6 {[%emt 0:05:07]} Be2+ {[%emt 0:00:15]} 38. Kc5 {[%emt 0:01:20]} Rxb6 {[%emt 0:00:24]} 39. Kxb6 {[%emt 0:00:13]} Ke6 {[%emt 0:00:18]} 40. Kc5 {[%emt 0:04:12]} Bf3 {[%emt 0:00:24]} 41. Kb5 {[%emt 0:20:02]} Bd1 {[%emt 0:15:26]} 42. Kc5 {[%emt 0:00:13]} Bb3 {[%emt 0:00:08]} 43. Bg1 {[%emt 0:01:10]} Kf5 {[%emt 0:00:24]} 44. d5 {[%emt 0:00:18]} Ke4 {[%emt 0:00:50]} 45. d6 {[%emt 0:00:18]} exd6+ {[%emt 0:00:09]} 46. Kxd6 {[%emt 0:00:04]} Kf3 {[%emt 0:00:23]} 47. Ke7 {[%emt 0:00:50]} Kg2 {[%emt 0:00:12]} 48. Bd4 {[%emt 0:00:19]} Kxh2 {[%emt 0:00:56]} 49. Kxf6 {[%emt 0:00:00]} Bc2 {[%emt 0:00:00]} 50. Be5 {[%emt 0:00:00]} Bf5 {[%emt 0:00:00]} 51. b4 {[%emt 0:00:00]} axb3 {[%emt 0:00:00]} 52. a4 {[%emt 0:00:00]} Kxg3 {[%emt 0:00:00]} 53. a5 {[%emt 0:00:00]} h4 {[%emt 0:00:00]} 54. a6 {[%emt 0:00:00]} h3 {[%emt 0:00:00]} 55. a7 {[%emt 0:00:00]} Be4 {[%emt 0:00:00]} 56. f5+ {[%emt 0:00:00]} Kf2 {[%emt 0:00:00]} 57. fxg6 {[%emt 0:00:00]} h2 {[%emt 0:00:00]} 58. Bxh2 {[%emt 0:01:46]} b2 {[%emt 0:00:00]} 59. g7 {[%emt 0:00:09]} b1=Q {[%emt 0:00:00]} 60. g8=Q {[%emt 0:00:10]} 1/2-1/2

[Event "DSAM Bad Wildungen 2024"]
[Site "Bad Wildungen"]
[Date "2024.08.01"]
[Round "2.32"]
[White "Rasch, Wolfgang"]
[Black "Reuter, Marek"]
[Result "0-1"]
[Annotator "NA RC"]
[ECO "D06"]
[WhiteElo "1761"]
[BlackElo "1761"]
[PlyCount "20"]
[EventDate "2024.07.31"]
[EventCountry "GER"]
[SourceTitle "playchess.com"]
[Source "ChessBase"]
[SourceQuality "1"]
[TimeControl "40/5400+30:900+30"]

1. d4 {[%emt 0:00:04]} Nf6 {[%emt 0:02:51]} 2. c4 {[%emt 0:00:06]} d5 {[%emt 0:00:29]} 3. cxd5 {[%emt 0:00:17]} Qxd5 {[%emt 0:03:22]} 4. Nc3 {[%emt 0:00:26]} Qa5 {[%emt 0:00:22]} 5. Qc2 {[%emt 0:06:45]} Bf5 {[%emt 0:01:23]} 6. Qa4+ {[%emt 0:02:18]} Qxa4 {[%emt 0:00:59]} 7. Nxa4 {[%emt 0:00:05]} Nc6 {[%emt 0:00:29]} 8. Be3 {[%emt 0:06:50]} Nb4 {[%emt 0:06:54]} 9. Rc1 {[%emt 0:00:45]} O-O-O {[%emt 0:02:07]} 10. Bf4 {[%emt 0:04:46]} Nc2+ {[%emt 0:03:25]} 0-1